bitfinex-derivatives/quotes_BTCF0:USTF0_20240905
["timestamp","ask_amount","ask_price","bid_price","bid_amount"]
[1725546156855,0.07317917,57186.0,57178.0,0.3]
[1725546157053,0.087443,57183.0,57182.0,0.6608]
[1725546157651,0.087444,57182.0,57176.0,0.004]
[1725546157854,0.087452,57177.0,57176.0,0.004]
[1725546158157,0.174904,57177.0,57176.0,0.005]
[1725546158654,0.087452,57177.0,57176.0,0.005]
[1725546159247,0.087452,57177.0,57176.0,0.006]
[1725546159447,0.087452,57177.0,57176.0,0.00974853]
[1725546159844,0.087452,57177.0,57176.0,0.00874853]
[1725546160049,0.3608,57182.0,57176.0,1.13442853]
[1725546160255,0.3608,57188.0,57181.0,0.004]
[1725546160451,0.087435,57188.0,57187.0,0.004]
[1725546160674,0.3608,57188.0,57182.0,0.3]
[1725546160863,0.3608,57188.0,57181.0,0.004]
[1725546161165,0.087444,57182.0,57181.0,0.004]
[1725546161348,0.690538,57195.0,57181.0,0.004]
[1725546161548,0.708424,57195.0,57194.0,0.004]
[1725546161755,0.795848,57195.0,57194.0,0.00360001]
[1725546162655,0.79954023,57195.0,57194.0,0.00360001]
[1725546162857,2.01148423,57195.0,57194.0,0.00360001]
[1725546163054,2.26278423,57195.0,57194.0,0.00308084]
[1725546163954,1.66278423,57195.0,57194.0,0.00408084]
[1725546164156,2.26278423,57195.0,57194.0,0.00408084]
[1725546164360,2.26278423,57195.0,57194.0,8.4e-07]
[1725546164659,2.26378423,57195.0,57194.0,8.4e-07]
[1725546164855,2.26378423,57195.0,57189.0,0.00026237]
[1725546164856,0.562296,57190.0,57189.0,2.1e-07]
[1725546165056,0.923096,57190.0,57189.0,2.1e-07]
[1725546165252,2.047656,57190.0,57189.0,2.1e-07]
[1725546165448,1.447656,57190.0,57189.0,2.1e-07]
[1725546165764,0.835664,57190.0,57189.0,2.1e-07]
[1725546165953,1.360224,57190.0,57189.0,2.1e-07]
[1725546166261,1.361224,57190.0,57189.0,0.00100021]
[1725546166560,2.048656,57190.0,57189.0,0.00100021]
[1725546166751,1.961224,57190.0,57189.0,0.00100021]
[1725546166947,2.048656,57190.0,57189.0,0.00200021]
[1725546167151,0.087452,57177.0,57176.0,0.00374853]
[1725546167361,0.087456,57174.0,57172.0,0.087458]
[1725546167557,0.087456,57174.0,57173.0,0.6608]
[1725546167962,0.3608,57181.0,57173.0,0.66453443]
[1725546168179,0.448246,57181.0,57180.0,0.004]
[1725546168462,0.535692,57181.0,57180.0,0.004]
[1725546168960,1.747778,57181.0,57180.0,0.004]
[1725546169270,0.53945436,57181.0,57180.0,0.004]
[1725546170257,0.448246,57181.0,57180.0,0.004]
[1725546170459,0.449246,57181.0,57180.0,0.005]
[1725546170759,0.449246,57181.0,57180.0,0.092447]
[1725546170951,0.087446,57181.0,57180.0,0.091447]
[1725546171152,0.088446,57181.0,57180.0,0.453247]
[1725546171348,0.088446,57181.0,57180.0,0.09715608]
[1725546171349,0.004,57181.0,57180.0,0.09715608]
[1725546171853,0.004,57181.0,57180.0,0.45795608]
[1725546172062,0.004,57181.0,57180.0,0.98259608]
[1725546173365,0.004,57181.0,57180.0,0.45795608]
[1725546173660,0.091446,57181.0,57180.0,0.00970908]
[1725546173866,0.091446,57181.0,57180.0,0.006]
[1725546174665,0.091446,57181.0,57180.0,0.3668]
[1725546175363,0.004,57181.0,57180.0,0.454247]
[1725546176154,0.001,57181.0,57180.0,0.453247]
[1725546176350,0.005,57181.0,57180.0,0.454247]
[1725546177256,0.005,57181.0,57180.0,0.453247]
[1725546178065,0.004,57181.0,57180.0,1.577887]
[1725546178570,0.004,57181.0,57180.0,0.977887]
[1725546178866,0.004,57181.0,57180.0,1.576887]
[1725546178867,0.001,57181.0,57180.0,1.576887]
[1725546179062,0.004,57181.0,57180.0,1.577887]
[1725546179566,0.004,57181.0,57180.0,1.965334]
[1725546179771,0.004,57181.0,57180.0,1.665334]
[1725546180163,0.004,57181.0,57180.0,1.965334]
[1725546180468,0.004,57181.0,57180.0,2.017981]
[1725546180764,0.004,57181.0,57180.0,1.877887]
[1725546181354,0.004,57181.0,57180.0,1.965334]
[1725546181760,0.00026161,57183.0,57182.0,0.174888]
[1725546181965,0.073538,57195.0,57182.0,0.24]
[1725546181966,0.004,57195.0,57182.0,0.24]
[1725546182170,0.004,57195.0,57181.0,0.88544]
[1725546182171,0.004,57195.0,57194.0,0.329426]
[1725546182361,0.004,57195.0,57194.0,0.690226]
[1725546182763,0.069538,57206.0,57194.0,1.814746]
[1725546182974,0.3608,57214.0,57205.0,0.244]
[1725546182975,0.069538,57207.0,57205.0,0.244]
[1725546183270,0.069538,57210.0,57207.0,0.087406]
[1725546183479,0.069538,57210.0,57209.0,0.6048]
[1725546183674,0.417038,57211.0,57209.0,0.6048]
[1725546183972,0.087401,57210.0,57209.0,0.004]
[1725546184168,0.087401,57210.0,57208.0,0.3]
[1725546184367,0.06963649,57210.0,57208.0,0.3]
[1725546184571,0.15803849,57210.0,57208.0,0.3]
[1725546184771,0.06963649,57209.0,57208.0,0.3]
[1725546184966,0.06963649,57209.0,57208.0,0.387404]
[1725546185166,0.001,57210.0,57209.0,0.087403]
[1725546185370,0.001,57210.0,57209.0,0.091403]
[1725546185873,0.001,57210.0,57209.0,0.452203]
[1725546186071,0.06963649,57213.0,57212.0,0.087398]
[1725546186281,0.087388,57219.0,57215.0,0.087394]
[1725546186574,0.087388,57219.0,57218.0,0.3]
[1725546187174,0.087394,57215.0,57214.0,0.3]
[1725546187864,0.02833337,57215.0,57212.0,0.004]
[1725546188070,0.02833337,57215.0,57214.0,0.3]
[1725546188071,0.08686793,57215.0,57214.0,0.3]
[1725546188272,0.48617303,57225.0,57214.0,0.3]
[1725546188273,0.08686793,57216.0,57214.0,0.3]
[1725546188578,0.46511367,57220.0,57214.0,0.3]
[1725546188579,0.17426193,57215.0,57214.0,0.3]
[1725546188782,0.087394,57215.0,57214.0,0.3]
[1725546188982,0.11572746,57215.0,57214.0,0.3]
[1725546189177,0.02833346,57215.0,57214.0,0.3]
[1725546189383,0.08681188,57215.0,57214.0,0.388395]
[1725546189577,0.08681188,57215.0,57214.0,0.389395]
[1725546190375,0.08681188,57216.0,57215.0,0.087394]
[1725546190580,0.08681188,57216.0,57215.0,0.091394]
[1725546190971,0.087389,57218.0,57215.0,0.3648]
[1725546190972,0.08678216,57218.0,57215.0,0.3648]
[1725546191273,0.0910451,57223.0,57217.0,0.004]
[1725546191473,0.02833076,57222.0,57221.0,0.087384]
[1725546191679,0.10431367,57223.0,57222.0,0.06475944]
[1725546191880,0.087384,57221.0,57220.0,0.3]
[1725546192083,0.11571538,57221.0,57220.0,0.3]
[1725546192284,0.087384,57221.0,57220.0,0.3]
[1725546192488,0.00370307,57225.0,57221.0,0.087383]
[1725546192784,0.087378,57225.0,57224.0,0.304]
[1725546192982,0.11570678,57225.0,57224.0,0.304]
[1725546193173,0.20308478,57225.0,57224.0,0.004]
[1725546193375,0.20308697,57225.0,57224.0,0.004]
[1725546194082,0.20308697,57225.0,57224.0,0.005]
[1725546195082,1.41470497,57225.0,57224.0,0.005]
[1725546195379,1.41470497,57225.0,57224.0,0.006]
[1725546196180,0.20308697,57225.0,57224.0,0.006]
[1725546196983,1.41470497,57225.0,57224.0,0.006]
[1725546197179,0.087394,57215.0,57214.0,0.00026237]
[1725546197378,0.087394,57215.0,57214.0,0.08765737]
[1725546197379,0.448194,57215.0,57214.0,0.08765737]
[1725546197686,0.535588,57215.0,57214.0,0.00026237]
[1725546197873,0.448194,57215.0,57214.0,0.00026237]
[1725546198074,0.535588,57215.0,57214.0,0.00026237]
[1725546198274,0.535588,57215.0,57158.0,1.21928845]
[1725546198275,0.087406,57207.0,57203.0,0.6608]
[1725546198479,1.48516,57215.0,57197.0,0.3608]
[1725546198480,0.087419,57200.0,57199.0,0.087418]
[1725546198792,0.3608,57210.0,57198.0,0.3]
[1725546198793,0.087418,57199.0,57198.0,0.3]
[1725546199287,0.00026158,57204.0,57198.0,0.3]
[1725546199490,0.087415,57202.0,57201.0,0.087415]
[1725546200381,0.00026158,57204.0,57203.0,0.087412]
[1725546200587,0.08867158,57204.0,57203.0,0.091412]
[1725546202381,0.08767158,57204.0,57203.0,0.091412]
[1725546202890,0.08967158,57204.0,57203.0,0.092412]
[1725546203280,0.00326158,57204.0,57203.0,0.454212]
[1725546203487,0.00326158,57204.0,57203.0,0.541624]
[1725546203682,0.00326158,57204.0,57203.0,0.454212]
[1725546203888,0.00326158,57204.0,57203.0,0.54538749]
[1725546204895,0.00326158,57204.0,57203.0,0.45797549]
[1725546205286,0.00326158,57204.0,57203.0,0.54538749]
[1725546205698,0.00326158,57204.0,57203.0,0.45797549]
[1725546206193,0.00326158,57204.0,57203.0,0.69797549]
[1725546207489,0.00326158,57204.0,57203.0,0.00976349]
[1725546207695,0.09067158,57204.0,57203.0,0.00976349]
[1725546207894,0.09067158,57204.0,57203.0,0.006]
[1725546208088,0.17808158,57204.0,57203.0,0.006]
[1725546208593,0.17808158,57204.0,57203.0,0.246]
[1725546209300,1.97274152,57204.0,57203.0,0.006]
[1725546209593,1.99073158,57204.0,57203.0,0.006]
[1725546209788,0.087423,57196.0,57195.0,0.00367199]
[1725546209990,0.087426,57194.0,57193.0,0.00026213]
[1725546210386,0.002,57194.0,57193.0,0.08768913]
[1725546210585,0.089426,57194.0,57193.0,0.08768913]
[1725546210793,0.087426,57194.0,57193.0,0.00390217]
[1725546211692,0.174852,57194.0,57193.0,0.00026213]
[1725546211886,0.175852,57194.0,57193.0,0.00026213]
[1725546212088,0.41943291,57194.0,57193.0,0.00026213]
[1725546212594,0.087436,57187.0,57186.0,0.3608]
[1725546212795,0.087447,57180.0,57179.0,0.60168]
[1725546212994,0.089447,57180.0,57179.0,0.3608]
[1725546213187,0.087452,57177.0,57174.0,0.087456]
[1725546213391,0.087457,57174.0,57171.0,0.087461]
[1725546213590,0.002,57175.0,57167.0,0.08772913]
[1725546213591,0.002,57172.0,57167.0,0.08772913]
[1725546213784,0.002,57168.0,57167.0,0.32772913]
[1725546214096,0.087464,57169.0,57168.0,0.087465]
[1725546214397,0.087464,57169.0,57168.0,0.002]
[1725546215397,0.002,57175.0,57168.0,0.002]
[1725546215592,0.089455,57175.0,57174.0,0.002]
[1725546215793,0.329455,57175.0,57174.0,0.002]
[1725546216400,0.854175,57175.0,57174.0,0.002]
[1725546216705,1.454175,57175.0,57174.0,0.002]
[1725546216890,0.41691,57175.0,57174.0,0.002]
[1725546217089,1.458175,57175.0,57174.0,0.003]
[1725546217290,0.333455,57175.0,57174.0,0.003]
[1725546217704,0.093455,57175.0,57174.0,0.003]
[1725546217893,0.093455,57175.0,57174.0,0.330456]
[1725546217894,0.006,57175.0,57174.0,0.330456]
[1725546218200,0.101455,57175.0,57174.0,0.331456]
[1725546218402,1.31363,57175.0,57174.0,0.004]
[1725546218894,0.18891,57175.0,57174.0,0.004]
[1725546219095,1.55363,57175.0,57174.0,0.004]
[1725546219496,0.18891,57175.0,57174.0,0.004]
[1725546219688,0.18891,57175.0,57174.0,0.331456]
[1725546219689,0.101455,57175.0,57174.0,0.331456]
[1725546220002,0.097455,57175.0,57174.0,0.003]
[1725546220194,0.100455,57175.0,57174.0,0.004]
[1725546220389,1.225175,57175.0,57174.0,0.004]
[1725546220592,1.31263,57175.0,57174.0,0.004]
[1725546220896,0.18791,57175.0,57174.0,0.004]
[1725546221194,0.17991,57175.0,57174.0,0.002]
[1725546221395,1.31363,57175.0,57174.0,0.003]
[1725546221800,0.17493,57168.0,57167.0,0.00026213]
[1725546221999,0.002,57168.0,57167.0,0.00026213]
[1725546222203,0.014,57175.0,57167.0,0.9648277]
[1725546222393,0.014,57175.0,57174.0,0.242]
[1725546222594,0.014,57175.0,57174.0,0.003]
[1725546222595,0.18591,57175.0,57174.0,0.003]
[1725546222898,0.626175,57175.0,57174.0,0.001]
[1725546223295,0.099455,57175.0,57174.0,0.241]
[1725546223500,0.096455,57175.0,57174.0,0.24]
[1725546223706,0.099455,57175.0,57174.0,0.241]
[1725546224097,0.003,57175.0,57174.0,0.241]
[1725546224301,0.003,57175.0,57174.0,0.328456]
[1725546224801,0.00026213,57178.0,57177.0,0.087452]
[1725546224994,0.3608,57190.0,57177.0,0.865156]
[1725546225195,0.3608,57201.0,57189.0,0.242]
[1725546225396,0.00367612,57204.0,57202.0,0.087413]
[1725546225591,0.00367612,57204.0,57203.0,0.242]
[1725546225592,0.08741,57204.0,57203.0,0.242]
[1725546225803,0.08741,57204.0,57203.0,0.24]
[1725546226810,0.2680706,57206.0,57203.0,0.24]
[1725546226998,0.2644,57206.0,57205.0,0.089409]
[1725546227198,0.01,57207.0,57206.0,0.087407]
[1725546227505,0.01,57207.0,57206.0,0.329407]
[1725546228107,0.01,57207.0,57206.0,0.389407]
[1725546229020,0.016,57207.0,57206.0,0.390407]
[1725546229203,0.016,57207.0,57206.0,0.39407319]
[1725546229708,0.016,57207.0,57206.0,0.00666619]
[1725546229908,0.016,57207.0,57206.0,0.39407319]
[1725546230609,0.016,57207.0,57206.0,0.09407319]
[1725546230797,0.016,57207.0,57206.0,0.004]
[1725546231107,0.103406,57207.0,57206.0,0.004]
[1725546231500,1.227806,57207.0,57206.0,0.004]
[1725546232413,0.087418,57199.0,57198.0,0.00026237]
[1725546232809,1.299316,57199.0,57198.0,0.00026237]
[1725546233711,1.300316,57199.0,57198.0,0.00126237]
[1725546234113,1.306316,57199.0,57198.0,0.00226237]
[1725546234418,1.306316,57199.0,57186.0,0.087438]
[1725546234419,0.087429,57192.0,57186.0,0.087438]
[1725546234600,0.087429,57192.0,57184.0,0.3608]
[1725546234796,0.3,57193.0,57177.0,0.6608]
[1725546234797,0.08745,57179.0,57177.0,0.088371]
[1725546235001,0.08745,57179.0,57177.0,0.087451]
[1725546235303,0.3,57187.0,57179.0,0.087448]
[1725546235508,0.087447,57181.0,57179.0,0.087448]
[1725546235813,0.079447,57181.0,57179.0,0.087448]
[1725546236012,0.08745,57178.0,57177.0,0.00026237]
[1725546236207,0.3608,57181.0,57177.0,0.00026237]
[1725546236407,0.448246,57181.0,57180.0,0.004]
[1725546236810,1.575886,57181.0,57180.0,0.004]
[1725546237314,1.57947312,57181.0,57180.0,0.004]
[1725546238116,0.456246,57181.0,57180.0,0.004]
[1725546238821,0.460246,57181.0,57180.0,0.005]
[1725546239507,0.099446,57181.0,57180.0,0.005]
[1725546239723,0.099446,57181.0,57180.0,0.092447]
[1725546239724,0.012,57181.0,57180.0,0.092447]
[1725546240020,0.312,57181.0,57180.0,0.005]
[1725546240203,0.012,57181.0,57180.0,0.092447]
[1725546240404,0.012,57181.0,57180.0,0.453247]
[1725546240712,0.012,57181.0,57180.0,0.753247]
[1725546241619,0.00021192,57181.0,57180.0,0.753247]
[1725546241817,0.00021192,57181.0,57180.0,0.840694]
[1725546242010,0.00021192,57181.0,57180.0,1.97399563]
[1725546242205,0.00026237,57189.0,57188.0,0.087435]
[1725546242417,0.00026237,57189.0,57188.0,0.748235]
[1725546242607,0.00026237,57189.0,57188.0,1.876835]
[1725546243710,0.01426237,57189.0,57188.0,1.276835]
[1725546243907,0.01426237,57189.0,57188.0,1.876835]
[1725546244713,0.01426237,57189.0,57188.0,1.053235]
[1725546244714,0.02726237,57189.0,57188.0,1.053235]
[1725546245021,0.41469537,57189.0,57188.0,0.3658]
[1725546245208,0.02726237,57189.0,57188.0,0.3658]
[1725546245416,0.02726237,57189.0,57188.0,0.753235]
[1725546245614,0.02726237,57189.0,57188.0,0.453235]
[1725546245913,0.02726237,57189.0,57188.0,0.454235]
[1725546245914,0.01326237,57189.0,57188.0,0.454235]
[1725546247418,0.01326237,57189.0,57188.0,0.754235]
[1725546247620,0.01526237,57189.0,57188.0,0.754235]
[1725546249106,0.01526237,57189.0,57188.0,0.454235]
[1725546249816,0.49012837,57189.0,57188.0,0.3668]
[1725546250224,1.61472837,57189.0,57188.0,0.3668]
[1725546250525,1.70216137,57189.0,57188.0,0.3668]
[1725546251014,0.40269537,57189.0,57188.0,0.3668]
[1725546251817,0.10269537,57189.0,57188.0,0.3668]
[1725546252810,0.10269537,57189.0,57188.0,0.454235]
[1725546253319,0.01526237,57189.0,57188.0,0.454235]
[1725546253520,0.01526237,57189.0,57188.0,2.053705]
[1725546253721,0.08166959,57207.0,57189.0,0.087432]
[1725546253913,0.012,57207.0,57206.0,0.450207]
[1725546254114,0.012,57207.0,57206.0,0.750207]
[1725546254312,0.012,57207.0,57206.0,0.450207]
[1725546255020,0.025,57207.0,57206.0,0.450207]
[1725546255621,0.032,57207.0,57206.0,0.450207]
[1725546255810,0.019,57207.0,57206.0,0.450207]
[1725546256013,0.019,57207.0,57206.0,0.451207]
[1725546256014,0.032,57207.0,57206.0,0.451207]
[1725546256211,0.032,57207.0,57206.0,0.3638]
[1725546256422,0.032,57207.0,57206.0,0.36840169]
[1725546257323,0.119406,57207.0,57206.0,0.36840169]
[1725546257518,0.119406,57207.0,57206.0,0.00760169]
[1725546258239,0.419406,57207.0,57206.0,0.00760169]
[1725546258410,0.119406,57207.0,57206.0,0.00760169]
[1725546258614,0.032,57207.0,57206.0,0.00760169]
[1725546259022,0.032,57207.0,57206.0,0.09500869]
[1725546259224,0.419406,57207.0,57206.0,0.004]
[1725546259425,0.332,57207.0,57206.0,0.004]
[1725546260524,0.032,57207.0,57206.0,0.091407]
[1725546261625,0.032,57207.0,57206.0,0.178814]
[1725546261926,0.06966959,57230.0,57217.0,0.08739]
[1725546262116,0.06966959,57230.0,57229.0,0.304]
[1725546262117,0.087371,57230.0,57229.0,0.304]
[1725546262317,0.06966959,57235.0,57229.0,0.304]
[1725546262717,0.06966959,57232.0,57230.0,0.08737]
[1725546262926,0.06966959,57232.0,57231.0,0.087369]
[1725546263227,0.00358095,57236.0,57235.0,0.087363]
[1725546263425,0.00358095,57236.0,57235.0,0.091363]
[1725546263629,0.5556,57243.0,57236.0,0.087361]
[1725546263630,0.087355,57240.0,57236.0,0.087361]
[1725546263829,0.087355,57240.0,57239.0,0.004]
[1725546264022,0.06944454,57242.0,57239.0,0.004]
[1725546264228,0.55712,57243.0,57241.0,0.3648]
[1725546264527,0.087353,57242.0,57241.0,0.004]
[1725546264728,0.087353,57242.0,57241.0,0.3648]
[1725546264924,0.55712,57243.0,57241.0,0.3648]
[1725546264925,0.00152,57243.0,57241.0,0.3648]
[1725546265125,0.3608,57247.0,57244.0,0.087349]
[1725546265329,0.087347,57246.0,57242.0,0.004]
[1725546265523,0.087348,57245.0,57242.0,0.004]
[1725546265921,0.3608,57247.0,57242.0,0.004]
[1725546266117,0.448145,57247.0,57246.0,0.004]
[1725546266938,0.087351,57243.0,57242.0,0.004]
[1725546267140,0.987351,57243.0,57242.0,0.004]
[1725546267434,0.698784,57242.0,57241.0,0.00060001]
[1725546267627,0.88488,57242.0,57226.0,0.3608]
[1725546267827,0.087371,57230.0,57225.0,0.087378]
[1725546268024,0.087371,57230.0,57221.0,0.3]
[1725546268223,0.087371,57230.0,57217.0,0.3608]
[1725546268224,0.2679,57232.0,57231.0,0.087369]
[1725546268425,0.06944454,57241.0,57233.0,0.087365]
[1725546268619,0.087358,57239.0,57235.0,0.387363]
[1725546268935,0.087354,57241.0,57235.0,0.6608]
[1725546269138,0.087356,57240.0,57239.0,0.3]
[1725546269335,0.6287,57242.0,57239.0,0.3]
[1725546269546,0.6287,57242.0,57241.0,0.004]
[1725546270133,0.716052,57242.0,57241.0,0.004]
[1725546270339,0.448152,57242.0,57241.0,0.004]
[1725546270524,0.0002613,57243.0,57241.0,0.091354]
[1725546270730,0.0002613,57243.0,57242.0,0.391352]
[1725546271436,0.0876123,57243.0,57242.0,0.391352]
[1725546272131,0.0002613,57243.0,57242.0,0.391352]
[1725546272731,0.0002613,57243.0,57242.0,0.091352]
[1725546273037,0.0002613,57243.0,57242.0,0.09495341]
[1725546273339,0.0002613,57243.0,57242.0,0.09595341]
[1725546273543,0.0876123,57243.0,57242.0,0.09595341]
[1725546273833,0.0876123,57243.0,57242.0,0.091352]
[1725546274237,0.0012613,57243.0,57242.0,0.092352]
[1725546274439,0.0886123,57243.0,57242.0,0.005]
[1725546274625,0.1759633,57243.0,57242.0,0.005]
[1725546274830,0.087368,57232.0,57231.0,0.00426212]
[1725546275029,0.089368,57232.0,57231.0,0.00426212]
[1725546275429,0.089368,57232.0,57231.0,0.30426212]
[1725546275632,0.089368,57232.0,57231.0,0.00426212]
[1725546276029,0.089368,57232.0,57231.0,0.00026212]
[1725546276833,0.002,57232.0,57231.0,0.38763112]
[1725546277032,0.002,57232.0,57231.0,0.47500012]
[1725546277228,0.002,57232.0,57231.0,0.83780012]
[1725546277643,0.003,57232.0,57231.0,0.75043112]
[1725546278944,0.0002613,57243.0,57242.0,0.087352]
[1725546279132,0.0002613,57243.0,57242.0,0.748152]
[1725546279332,0.0002613,57243.0,57242.0,0.389352]
[1725546279528,0.0002613,57243.0,57242.0,0.750152]
[1725546280338,0.0002613,57243.0,57242.0,0.389352]
[1725546281341,0.0002613,57243.0,57242.0,0.39294973]
[1725546281735,0.0002613,57243.0,57242.0,0.75374973]
[1725546282043,0.0002613,57243.0,57242.0,0.39294973]
[1725546282844,0.06946546,57243.0,57242.0,0.39294973]
[1725546283347,0.0002613,57243.0,57242.0,0.84110173]
[1725546283537,0.06968175,57243.0,57242.0,0.84110173]
[1725546283946,0.0002613,57243.0,57242.0,0.84110173]
[1725546284133,0.0002613,57243.0,57242.0,0.75374973]
[1725546284539,0.0002613,57243.0,57242.0,0.84110173]
[1725546284742,0.06942045,57244.0,57243.0,0.174702]
[1725546284944,0.008,57245.0,57244.0,0.174698]
[1725546285142,0.008,57245.0,57244.0,0.700778]
[1725546285333,0.008,57245.0,57244.0,1.298778]
[1725546285534,0.06942045,57253.0,57252.0,0.174674]
[1725546285743,0.0866323,57264.0,57263.0,0.08732]
[1725546285940,0.087319,57264.0,57263.0,0.304]
[1725546286141,0.087319,57264.0,57258.0,0.6608]
[1725546286355,0.087319,57264.0,57252.0,0.004]
[1725546286356,0.174672,57253.0,57252.0,0.004]
[1725546286741,0.06941047,57260.0,57252.0,0.3648]
[1725546287051,0.3608,57268.0,57252.0,0.3648]
[1725546287052,0.06941047,57262.0,57259.0,0.391326]
[1725546287256,0.43020136,57263.0,57262.0,0.087322]
[1725546287440,0.3608,57268.0,57262.0,0.091322]
[1725546287441,0.06940136,57264.0,57262.0,0.091322]
[1725546287640,0.087318,57265.0,57261.0,0.304]
[1725546287641,0.06940136,57265.0,57264.0,0.087319]
[1725546287848,0.06940136,57269.0,57264.0,0.004]
[1725546288143,0.06940136,57269.0,57261.0,0.004]
[1725546288144,0.087311,57269.0,57268.0,0.3]
[1725546288556,0.53857893,57274.0,57268.0,0.3]
[1725546288557,0.06939821,57271.0,57268.0,0.3]
[1725546288763,0.087311,57269.0,57268.0,0.3]
[1725546288956,0.08731,57270.0,57268.0,0.387313]
[1725546289158,0.08731,57270.0,57269.0,0.004]
[1725546289969,0.15671085,57270.0,57269.0,0.004]
[1725546290461,0.174621,57270.0,57269.0,0.004]
[1725546290851,0.174621,57270.0,57269.0,0.00360001]
[1725546290852,0.26136666,57270.0,57269.0,0.00360001]
[1725546291051,0.26136666,57270.0,57269.0,0.30360001]
[1725546291258,0.08731,57270.0,57269.0,0.30360001]
[1725546291452,0.1741346,57270.0,57269.0,0.00360001]
[1725546291668,0.08731,57270.0,57269.0,0.00360001]
[1725546291862,0.17462,57270.0,57269.0,0.00360001]
[1725546292063,0.087322,57262.0,57261.0,0.00426212]
[1725546292468,0.087322,57262.0,57261.0,0.09158512]
[1725546292654,0.087322,57262.0,57261.0,0.09526698]
[1725546294058,0.087322,57262.0,57261.0,0.09126698]
[1725546294259,0.087322,57262.0,57261.0,0.00394398]
[1725546294669,0.087322,57262.0,57261.0,0.30394398]
[1725546294971,0.066122,57262.0,57261.0,0.30394398]
[1725546295370,0.153444,57262.0,57261.0,0.30394398]
[1725546295872,0.066122,57262.0,57261.0,0.39126698]
[1725546296258,0.13556101,57262.0,57261.0,0.39126698]
[1725546297070,0.06140901,57263.0,57262.0,0.087322]
[1725546297269,0.06140901,57263.0,57262.0,0.387322]
[1725546297468,0.06140901,57263.0,57262.0,0.389322]
[1725546297659,0.09083063,57270.0,57262.0,0.302]
[1725546297975,0.087318,57265.0,57264.0,0.087318]
[1725546298857,0.004,57270.0,57267.0,0.087313]
[1725546299069,0.004,57270.0,57261.0,0.36474398]
[1725546299070,0.09131,57270.0,57269.0,0.242]
[1725546299872,0.09131,57270.0,57269.0,0.329311]
[1725546300575,0.17862,57270.0,57269.0,0.002]
[1725546300765,0.26545063,57270.0,57269.0,0.002]
[1725546300960,0.18162,57270.0,57269.0,0.002]
[1725546302180,0.09431,57270.0,57269.0,0.242]
[1725546302473,0.18162,57270.0,57269.0,0.002]
[1725546303164,0.18162,57270.0,57269.0,0.242]
[1725546303365,0.18162,57270.0,57269.0,0.003]
[1725546303568,1.30546,57270.0,57269.0,0.003]
[1725546304174,1.62977,57270.0,57269.0,0.004]
[1725546304367,0.174644,57262.0,57261.0,0.00026212]
[1725546304559,0.624766,57262.0,57261.0,0.00026212]
[1725546304768,0.624766,57262.0,57240.0,0.13913647]
[1725546304769,1.72672,57262.0,57250.0,0.24]
[1725546304970,0.089339,57251.0,57250.0,0.24]
[1725546305265,0.176678,57251.0,57250.0,0.24]
[1725546305461,0.08734,57250.0,57246.0,0.24]
[1725546305760,0.002,57251.0,57249.0,0.24]
[1725546306068,0.08734,57250.0,57249.0,0.24]
[1725546306275,0.3608,57253.0,57250.0,0.002]
[1725546306473,0.448136,57253.0,57252.0,0.242]
[1725546306678,0.00026212,57254.0,57253.0,0.087336]
[1725546306970,0.00026212,57254.0,57253.0,0.089336]
[1725546307378,0.08759612,57254.0,57253.0,0.002]
[1725546307585,0.17493012,57254.0,57253.0,0.002]
[1725546308077,0.69893012,57254.0,57253.0,0.002]
[1725546308577,1.47308596,57254.0,57253.0,0.002]
[1725546308776,0.78626412,57254.0,57253.0,0.002]
[1725546309075,0.18093012,57254.0,57253.0,0.243]
[1725546309473,0.18093012,57254.0,57253.0,0.003]
[1725546309675,1.30493012,57254.0,57253.0,0.003]
[1725546309873,1.39226412,57254.0,57253.0,0.003]
[1725546310271,1.47908596,57254.0,57253.0,0.003]
[1725546310471,1.39226412,57254.0,57253.0,0.003]
[1725546310965,1.42058379,57254.0,57253.0,0.003]
[1725546311164,0.79196472,57254.0,57253.0,0.003]
[1725546311362,0.18063072,57254.0,57253.0,0.003]
[1725546311568,0.18093012,57254.0,57253.0,0.003]
[1725546311772,1.63226412,57254.0,57253.0,0.003]
[1725546311975,1.6605834,57254.0,57253.0,0.003]
[1725546312170,1.64808361,57254.0,57253.0,0.003]
[1725546312371,1.64808361,57254.0,57245.0,7.59579]
[1725546312372,0.174692,57246.0,57245.0,7.59579]
[1725546312566,0.537492,57246.0,57245.0,7.59579]
[1725546312774,1.988878,57246.0,57245.0,7.59579]
[1725546313175,1.748878,57246.0,57245.0,7.59579]
[1725546313378,1.388878,57246.0,57245.0,7.59579]
[1725546313685,1.988878,57246.0,57245.0,7.59579]
[1725546313983,2.520978,57246.0,57245.0,7.59579]
[1725546314277,2.520978,57246.0,57245.0,7.60279]
[1725546314780,2.54930048,57246.0,57245.0,7.17999]
[1725546315082,2.54930048,57246.0,57245.0,6.46204596]
[1725546315273,2.30930048,57246.0,57245.0,6.27827696]
[1725546315475,2.30930048,57246.0,57245.0,5.18888396]
[1725546315476,2.39664648,57246.0,57245.0,5.18888396]
[1725546315674,2.39664648,57246.0,57245.0,5.07717496]
[1725546315868,2.43039502,57246.0,57245.0,4.98170996]
[1725546316075,2.43839502,57246.0,57245.0,4.98070996]
[1725546316274,2.43839502,57246.0,57245.0,4.87815396]
[1725546316275,2.40464648,57246.0,57245.0,4.87815396]
[1725546316777,2.64465112,57246.0,57245.0,4.87815396]
[1725546316971,2.64465112,57246.0,57245.0,4.78493896]